bitfinex/quotes_ETHUSD_20230102
["timestamp","ask_amount","ask_price","bid_price","bid_amount"]
[1672620278306,6.64886114,1200.2,1200.0,2.5]
[1672620278677,6.65134089,1200.2,1199.9,9.00275406]
[1672620278970,5.0,1200.1,1199.9,9.00275406]
[1672620279188,5.00247975,1200.1,1199.9,9.00275406]
[1672620279401,5.00247975,1200.1,1199.9,9.92826785]
[1672620284936,0.00247975,1200.1,1200.0,2.5]
[1672620285155,6.64886114,1200.2,1200.1,0.00370481]
[1672620285483,6.65134089,1200.2,1200.1,0.00370481]
[1672620286032,11.65134089,1200.2,1200.1,0.00370481]
[1672620289126,11.65334089,1200.2,1200.1,0.00370481]
[1672620289335,11.65134089,1200.2,1200.1,0.00370481]
[1672620291858,13.24641978,1200.2,1200.1,0.00117549]
[1672620293373,13.04641978,1200.2,1200.1,0.00117549]
[1672620294803,8.04641978,1200.2,1200.1,0.00117549]
[1672620295044,6.45134089,1200.2,1200.1,0.00117549]
[1672620295537,11.45134089,1200.2,1200.1,0.00117549]
[1672620301483,6.45134089,1200.2,1200.1,0.00117549]
[1672620302523,11.45134089,1200.2,1200.1,0.00117549]
[1672620304510,8.95134089,1200.2,1200.1,0.25355931]
[1672620304949,5.00247975,1200.2,1200.1,1.08455931]
[1672620305146,4.95247975,1200.2,1200.1,1.08455931]
[1672620307749,4.95247975,1200.2,1200.1,0.25355931]
[1672620315330,0.6918,1200.3,1200.1,0.25355931]
[1672620315545,4.72466114,1200.3,1200.1,0.25355931]
[1672620316719,5.0,1200.2,1200.1,0.25355931]
[1672620316930,5.004,1200.2,1200.1,0.25355931]
[1672620322044,7.504,1200.2,1200.1,0.00117549]
[1672620322798,2.504,1200.2,1200.1,0.00117549]
[1672620323002,2.5,1200.2,1200.1,0.00117549]
[1672620323451,7.5,1200.2,1200.1,0.00117549]
[1672620323628,7.504,1200.2,1200.1,0.00117549]
[1672620328576,5.004,1200.2,1200.1,0.25355931]
[1672620336269,5.004,1200.2,1200.1,0.25052329]
[1672620336898,5.004,1200.2,1200.1,3.25052329]
[1672620337112,5.004,1200.2,1200.1,3.82557562]
[1672620349233,0.004,1200.2,1200.1,3.82557562]
[1672620349400,8.898,1200.4,1200.1,3.82557562]
[1672620350078,5.0,1200.2,1200.1,3.82557562]
[1672620350243,5.004,1200.2,1200.1,3.82557562]
[1672620351392,5.004,1200.2,1200.1,3.25052329]
[1672620353820,5.004,1200.2,1200.1,0.25052329]
[1672620354031,5.004,1200.2,1200.0,3.0]
[1672620359009,5.004,1200.2,1200.0,2.9977538]
[1672620360445,0.004,1200.2,1200.0,2.9977538]
[1672620360636,2.09,1200.3,1200.0,5.4977538]
[1672620360849,7.75756114,1200.3,1200.0,5.59316]
[1672620361057,7.76156114,1200.3,1200.0,3.09316]
[1672620361322,7.76156114,1200.3,1200.0,5.4977538]
[1672620361535,7.76156114,1200.3,1200.0,5.59316]
[1672620361727,5.0,1200.1,1200.0,3.09316]
[1672620361954,5.004,1200.1,1200.0,2.9977538]
[1672620366640,5.004,1200.1,1200.0,3.25013762]
[1672620367841,5.004,1200.1,1200.0,5.75013762]
[1672620367842,0.004,1200.1,1200.0,5.75013762]
[1672620368057,7.76156114,1200.3,1200.0,5.84554382]
[1672620368418,7.76356114,1200.3,1200.0,5.84354382]
[1672620368739,5.0,1200.1,1200.0,3.34554382]
[1672620369126,5.004,1200.1,1200.0,3.25013762]
[1672620370213,5.004,1200.1,1200.0,5.75013762]
[1672620370415,5.004,1200.1,1200.0,7.32083299]
[1672620371903,5.004,1200.1,1200.0,4.82083299]
[1672620372243,5.004,1200.1,1200.0,4.72542679]
[1672620372921,5.004,1200.1,1200.0,7.22542679]
[1672620373098,5.004,1200.1,1200.0,7.32083299]
[1672620373285,5.004,1200.1,1200.0,4.82083299]
[1672620373625,5.004,1200.1,1200.0,4.72542679]
[1672620376091,5.004,1200.1,1200.0,7.22542679]
[1672620376457,5.004,1200.1,1200.0,4.82083299]
[1672620376671,0.004,1200.1,1200.0,5.75013762]
[1672620376843,6.24286114,1200.3,1200.0,5.84554382]
[1672620377177,5.0,1200.1,1200.0,3.34554382]
[1672620377350,5.004,1200.1,1200.0,3.25013762]
[1672620381669,5.004,1200.1,1200.0,6.97542679]
[1672620381883,5.004,1200.1,1200.0,7.07083299]
[1672620382134,5.004,1200.1,1200.0,7.06839973]
[1672620383056,5.004,1200.1,1200.0,7.29839973]
[1672620389561,0.004,1200.1,1200.0,7.29839973]
[1672620389757,13.256,1200.4,1200.1,2.5]
[1672620389758,11.052,1200.4,1200.1,2.5]
[1672620389969,17.63245114,1200.4,1200.1,2.5]
[1672620390177,17.63245114,1200.4,1200.2,0.25238382]
[1672620390383,15.54045114,1200.4,1200.2,0.25238382]
[1672620390634,5.0,1200.3,1200.2,0.25238382]
[1672620390797,5.004,1200.3,1200.2,0.25238382]
[1672620393024,4.954,1200.3,1200.2,0.25238382]
[1672620393233,4.95,1200.3,1200.2,0.25238382]
[1672620394793,4.95,1200.3,1200.2,0.67111813]
[1672620395025,4.95,1200.3,1200.2,0.25238382]
[1672620396725,15.60245114,1200.4,1200.2,0.64433106]
[1672620396945,7.27225114,1200.4,1200.2,0.64433106]
[1672620397256,4.77866114,1200.4,1200.3,0.25238382]
[1672620397403,7.27466114,1200.4,1200.3,0.25238382]
[1672620397618,12.27866114,1200.4,1200.3,0.25238382]
[1672620399403,9.77866114,1200.4,1200.3,0.25238382]
[1672620403652,4.77866114,1200.4,1200.3,0.25238382]
[1672620403839,4.77466114,1200.4,1200.3,0.25238382]
[1672620404457,9.77466114,1200.4,1200.3,0.25238382]
[1672620404667,9.77866114,1200.4,1200.3,0.25238382]
[1672620404878,9.78066114,1200.4,1200.3,0.25238382]
[1672620405207,9.77866114,1200.4,1200.3,0.25238382]
[1672620410487,4.77866114,1200.4,1200.3,0.25238382]
[1672620410700,4.77466114,1200.4,1200.3,0.25238382]
[1672620411660,9.77466114,1200.4,1200.3,0.25238382]
[1672620411808,9.77866114,1200.4,1200.3,0.25238382]
[1672620413240,9.77866114,1200.4,1200.3,0.2489994]
[1672620416972,10.97192725,1200.4,1200.3,0.2489994]
[1672620417230,10.34612725,1200.4,1200.3,0.2489994]
[1672620417778,5.34612725,1200.4,1200.3,0.2489994]
[1672620418468,10.34612725,1200.4,1200.3,0.2489994]
[1672620420544,10.34612725,1200.4,1200.2,0.39194724]
[1672620420774,5.0,1200.3,1200.2,0.39194724]
[1672620420979,5.004,1200.3,1200.2,0.39194724]
[1672620421975,5.004,1200.3,1200.1,8.72999002]
[1672620424539,0.004,1200.3,1200.2,2.5]
[1672620424751,6.14886114,1200.4,1200.1,8.72999002]
[1672620424960,4.15286114,1200.4,1200.2,2.75238382]
[1672620425194,5.04211725,1200.4,1200.2,0.25238382]
[1672620425484,5.0,1200.3,1200.2,0.25238382]
[1672620425749,5.004,1200.3,1200.2,0.25238382]
[1672620428567,7.504,1200.3,1200.2,0.25238382]
[1672620428916,8.76481172,1200.3,1200.2,0.25238382]
[1672620429288,6.26481172,1200.3,1200.2,0.25238382]
[1672620433278,8.76481172,1200.3,1200.2,0.24966477]
[1672620433605,6.26481172,1200.3,1200.2,0.24966477]
[1672620434415,10.41367286,1200.3,1200.2,0.24966477]
[1672620435800,5.41367286,1200.3,1200.2,0.24966477]
[1672620436139,4.15286114,1200.3,1200.2,0.24966477]
[1672620436457,4.14886114,1200.3,1200.2,0.24966477]
[1672620436806,9.14886114,1200.3,1200.2,0.24966477]
[1672620437134,9.15286114,1200.3,1200.2,0.24966477]
[1672620440568,11.22886114,1200.3,1200.2,0.24966477]
[1672620440929,12.81634725,1200.3,1200.2,0.24966477]
[1672620442715,7.81634725,1200.3,1200.2,0.24966477]
[1672620443807,12.81634725,1200.3,1200.2,0.24966477]
[1672620444139,10.74034725,1200.3,1200.2,0.24966477]
[1672620444747,9.15286114,1200.3,1200.2,0.24966477]
[1672620455283,9.15286114,1200.3,1200.1,2.5]
[1672620455493,5.0,1200.2,1200.1,2.75238382]
[1672620455699,5.004,1200.2,1200.1,2.5]
[1672620456035,5.004,1200.2,1200.1,3.30907267]
[1672620456246,5.004,1200.2,1200.1,3.56145649]
[1672620457762,5.004,1200.2,1200.1,3.55746657]
[1672620460999,5.004,1200.2,1200.1,1.06145649]
[1672620461214,5.004,1200.2,1200.1,0.25238382]
[1672620464330,0.004,1200.2,1200.1,2.75238382]
[1672620464585,5.0,1200.2,1200.1,0.25238382]
[1672620464798,5.004,1200.2,1200.1,0.25238382]
[1672620470456,0.004,1200.2,1200.1,0.25238382]
[1672620470669,4.14886114,1200.3,1200.1,0.25238382]
[1672620471684,5.0,1200.2,1200.1,0.25238382]
[1672620471850,5.004,1200.2,1200.1,0.25238382]
[1672620478197,5.004,1200.2,1200.1,0.24873457]
[1672620479501,5.00160689,1200.2,1200.1,2.74873457]
[1672620479972,5.00160689,1200.2,1200.1,0.24873457]
[1672620480341,9.15046803,1200.2,1200.1,0.24873457]
[1672620486341,4.15286114,1200.2,1200.1,0.24873457]
[1672620486558,4.14886114,1200.2,1200.1,0.24873457]
[1672620487445,9.14886114,1200.2,1200.1,0.24873457]
[1672620487669,9.15286114,1200.2,1200.1,0.24873457]
[1672620493286,4.15286114,1200.2,1200.1,0.24873457]
[1672620493502,4.14886114,1200.2,1200.1,0.24873457]
[1672620494500,9.14886114,1200.2,1200.1,0.24873457]
[1672620494654,9.15286114,1200.2,1200.1,0.24873457]
[1672620500110,9.15286114,1200.2,1200.1,0.24507569]
[1672620500378,4.15286114,1200.2,1200.1,0.24507569]
[1672620500573,4.14886114,1200.2,1200.1,0.24507569]
[1672620501414,9.14886114,1200.2,1200.1,0.24507569]
[1672620501633,9.15286114,1200.2,1200.1,0.24507569]
[1672620507418,4.15286114,1200.2,1200.1,0.24507569]
[1672620507628,4.14886114,1200.2,1200.1,0.24507569]
[1672620508244,9.14886114,1200.2,1200.1,0.24507569]
[1672620508453,9.15286114,1200.2,1200.1,0.24507569]
[1672620514394,4.15286114,1200.2,1200.1,0.24507569]
[1672620514604,4.14886114,1200.2,1200.1,0.24507569]
[1672620515600,9.14886114,1200.2,1200.1,0.24507569]
[1672620515835,9.15286114,1200.2,1200.1,0.24507569]
[1672620517898,10.13692725,1200.2,1200.1,0.24507569]
[1672620521797,10.13692725,1200.2,1200.1,0.24237091]
[1672620526710,10.13692725,1200.2,1200.0,2.99532054]
[1672620526921,9.14886114,1200.1,1200.0,2.99532054]
[1672620527147,9.15286114,1200.1,1200.0,2.99532054]
[1672620528853,9.15286114,1200.1,1200.0,3.24770436]
[1672620530852,4.15286114,1200.1,1200.0,3.24770436]
[1672620531061,4.14886114,1200.1,1200.0,3.24770436]
[1672620531234,9.14886114,1200.1,1200.0,3.24770436]
[1672620531441,9.15286114,1200.1,1200.0,3.24770436]
[1672620535787,9.15286114,1200.1,1200.0,3.63053787]
[1672620537168,10.17275387,1200.1,1200.0,0.63521733]
[1672620540793,10.79865387,1200.1,1200.0,0.63521733]
[1672620542393,10.79865387,1200.1,1200.0,0.63213823]
[1672620544199,12.87865387,1200.1,1200.0,0.63213823]
[1672620548904,7.87865387,1200.1,1200.0,0.63213823]
[1672620549221,12.87865387,1200.1,1200.0,0.63213823]
[1672620555285,7.87865387,1200.1,1200.0,0.63213823]
[1672620555492,7.25275387,1200.1,1200.0,0.63213823]
[1672620556114,12.25275387,1200.1,1200.0,0.63213823]
[1672620562267,7.25275387,1200.1,1200.0,0.63213823]
[1672620563427,12.25275387,1200.1,1200.0,0.63213823]
[1672620566867,12.25275387,1200.1,1200.0,0.62857484]
[1672620569198,7.25275387,1200.1,1200.0,0.62857484]
[1672620570290,12.25275387,1200.1,1200.0,0.62857484]
[1672620575614,10.17275387,1200.1,1200.0,0.62857484]
[1672620576214,5.17275387,1200.1,1200.0,0.62857484]
[1672620577209,10.17275387,1200.1,1200.0,0.62857484]
[1672620583247,5.17275387,1200.1,1200.0,0.62857484]
[1672620584203,10.17275387,1200.1,1200.0,0.62857484]
[1672620584689,10.17275387,1200.1,1200.0,0.38283351]
[1672620588322,10.17275387,1200.1,1200.0,0.38005212]
[1672620589244,10.16886811,1200.1,1200.0,0.38005212]
[1672620590294,5.16886811,1200.1,1200.0,0.38005212]
[1672620591402,10.16886811,1200.1,1200.0,0.38005212]
[1672620595876,9.14897538,1200.1,1200.0,0.38005212]
[1672620597229,4.14897538,1200.1,1200.0,0.38005212]
[1672620597442,4.14497538,1200.1,1200.0,0.38005212]
[1672620598168,9.14497538,1200.1,1200.0,0.38005212]
[1672620598409,9.14897538,1200.1,1200.0,0.38005212]
[1672620602771,10.34166292,1200.1,1200.0,0.63243594]
[1672620604228,5.34166292,1200.1,1200.0,0.63243594]
[1672620605191,10.34166292,1200.1,1200.0,0.63243594]
[1672620611009,10.34166292,1200.1,1200.0,0.58243594]
[1672620611207,5.34166292,1200.1,1200.0,0.58243594]
[1672620612260,10.34166292,1200.1,1200.0,0.58243594]
[1672620629673,5.34166292,1200.1,1200.0,0.58243594]
[1672620630678,10.34166292,1200.1,1200.0,0.58243594]
[1672620634089,10.34166292,1200.1,1200.0,0.57970019]
[1672620636706,5.34166292,1200.1,1200.0,0.32731637]
[1672620637608,10.34166292,1200.1,1200.0,0.32731637]
[1672620643339,12.42966292,1200.1,1200.0,0.32731637]
[1672620644174,12.42966292,1200.1,1200.0,0.27731637]
[1672620652318,7.42966292,1200.1,1200.0,0.27731637]
[1672620653193,12.42966292,1200.1,1200.0,0.27731637]
[1672620663493,7.42966292,1200.1,1200.0,0.27731637]
[1672620664031,12.42966292,1200.1,1200.0,0.27731637]
[1672620666180,12.42966292,1200.1,1200.0,0.27414505]
[1672620670163,7.42966292,1200.1,1200.0,0.27414505]
[1672620670998,12.42966292,1200.1,1200.0,0.27414505]
[1672620677057,7.42966292,1200.1,1200.0,0.27414505]
[1672620678115,12.42966292,1200.1,1200.0,0.27414505]
[1672620683615,11.23697538,1200.1,1200.0,0.27414505]
[1672620683933,9.14897538,1200.1,1200.0,0.27414505]
[1672620686084,9.14897538,1200.1,1200.0,0.27185125]
[1672620691442,4.14897538,1200.1,1200.0,0.27185125]
[1672620691651,4.14497538,1200.1,1200.0,0.27185125]
[1672620692540,9.14497538,1200.1,1200.0,0.27185125]
[1672620692732,9.14897538,1200.1,1200.0,0.27185125]
[1672620705739,9.15097538,1200.1,1200.0,0.27185125]
[1672620705952,9.14897538,1200.1,1200.0,0.27185125]
[1672620708791,9.14897538,1200.1,1200.0,0.26948551]
[1672620713027,4.14503134,1200.1,1200.0,2.76948551]
[1672620713376,4.14103134,1200.1,1200.0,2.76948551]
[1672620713919,9.14103134,1200.1,1200.0,0.26948551]
[1672620714084,9.14503134,1200.1,1200.0,0.26948551]
[1672620716927,9.14503134,1200.1,1200.0,0.52186933]
[1672620719956,4.14503134,1200.1,1200.0,0.52186933]
[1672620720165,4.14103134,1200.1,1200.0,0.52186933]
[1672620720924,9.14103134,1200.1,1200.0,0.52186933]
[1672620721167,9.14503134,1200.1,1200.0,0.52186933]
[1672620727044,4.14503134,1200.1,1200.0,0.52186933]
[1672620727213,4.14103134,1200.1,1200.0,0.52186933]
[1672620727951,9.14103134,1200.1,1200.0,0.52186933]
[1672620728121,9.14503134,1200.1,1200.0,0.52186933]
[1672620731219,10.06573447,1200.1,1200.0,0.52186933]
[1672620738182,10.06573447,1200.1,1200.0,0.51915669]
[1672620738799,5.06573447,1200.1,1200.0,0.51915669]
[1672620739114,10.06573447,1200.1,1200.0,0.51915669]
[1672620740855,10.06573447,1200.1,1200.0,0.26677287]
[1672620741523,10.69163447,1200.1,1200.0,0.26677287]
[1672620742334,12.78163447,1200.1,1200.0,0.26677287]
[1672620743960,12.78163447,1200.1,1199.8,0.40882904]
[1672620744177,5.0,1199.9,1199.8,0.40882904]
[1672620744508,9.15286114,1199.9,1199.8,0.40882904]
[1672620744909,9.15286114,1199.9,1199.8,0.66121286]
[1672620746487,12.16634725,1199.9,1199.8,0.35573904]
[1672620746733,12.79234725,1199.9,1199.8,0.35573904]
[1672620748709,12.79234725,1199.9,1199.8,0.30573904]
[1672620770142,12.79234725,1199.9,1199.8,0.30253521]
[1672620770779,7.79234725,1199.9,1199.8,0.30253521]
[1672620771915,12.79234725,1199.9,1199.8,0.30253521]
[1672620772350,12.16634725,1199.9,1199.8,0.30253521]
[1672620774300,14.25834725,1199.9,1199.8,0.30253521]
[1672620777731,9.25834725,1199.9,1199.8,0.30253521]
[1672620778729,14.25834725,1199.9,1199.8,0.30253521]
[1672620784719,9.25834725,1199.9,1199.8,0.30253521]
[1672620785733,14.25834725,1199.9,1199.8,0.30253521]
[1672620786183,12.16634725,1199.9,1199.8,0.30253521]
[1672620791713,7.16634725,1199.9,1199.8,0.30253521]
[1672620792719,12.16634725,1199.9,1199.8,0.30253521]
[1672620794610,12.16634725,1199.9,1199.8,0.29873373]
[1672620798921,7.16634725,1199.9,1199.8,0.29873373]
[1672620799701,12.16634725,1199.9,1199.8,0.29873373]
[1672620805763,7.16634725,1199.9,1199.8,0.29873373]
[1672620806652,12.16634725,1199.9,1199.8,0.29873373]
[1672620815235,10.07434725,1199.9,1199.8,0.55111755]
[1672620815551,9.15286114,1199.9,1199.8,0.55111755]
[1672620818633,9.15286114,1199.9,1199.8,0.54743514]
[1672620821447,4.15286114,1199.9,1199.8,0.54743514]
[1672620821763,4.14886114,1199.9,1199.8,0.54743514]
[1672620822429,9.14886114,1199.9,1199.8,0.54743514]
[1672620822638,9.15286114,1199.9,1199.8,0.54743514]
[1672620825428,10.38694725,1199.9,1199.8,0.54743514]
[1672620828418,5.38694725,1199.9,1199.8,0.54743514]
[1672620829553,10.38694725,1199.9,1199.8,0.54743514]
[1672620835626,5.38694725,1199.9,1199.8,0.54743514]
[1672620836470,10.38694725,1199.9,1199.8,0.54743514]
[1672620842463,5.38694725,1199.9,1199.8,0.54743514]
[1672620842774,4.15286114,1199.9,1199.8,0.54743514]
[1672620843086,4.14886114,1199.9,1199.8,0.54743514]
[1672620843450,9.14886114,1199.9,1199.8,0.5435277]
[1672620843663,9.15286114,1199.9,1199.8,0.5435277]
[1672620849642,4.15286114,1199.9,1199.8,0.5435277]
[1672620849957,4.14886114,1199.9,1199.8,0.5435277]
[1672620850330,4.88294725,1199.9,1199.8,0.5435277]
[1672620850541,11.97494725,1199.9,1199.8,0.29114388]
[1672620850810,12.20894725,1199.9,1199.8,0.29114388]
[1672620850968,12.83494725,1199.9,1199.8,0.29114388]
[1672620857806,12.83494725,1199.9,1199.8,0.24114388]
[1672620860209,7.83494725,1199.9,1199.8,0.24114388]
[1672620861163,12.83494725,1199.9,1199.8,0.24114388]
[1672620862000,15.83494725,1199.9,1199.8,0.24114388]
[1672620862311,22.83494725,1199.9,1199.8,0.24114388]
[1672620871166,17.83494725,1199.9,1199.8,0.24114388]
[1672620872423,22.83494725,1199.9,1199.8,0.24114388]
[1672620873584,22.20894725,1199.9,1199.8,0.24114388]
[1672620875007,22.21094725,1199.9,1199.8,0.24114388]
[1672620875177,22.20894725,1199.9,1199.8,0.24114388]
[1672620881199,22.20894725,1199.9,1199.8,0.23851441]
[1672620884428,17.20894725,1199.9,1199.8,0.23851441]
[1672620885462,22.20894725,1199.9,1199.8,0.23851441]
[1672620885674,22.21094725,1199.9,1199.8,0.23851441]
[1672620885896,22.20894725,1199.9,1199.8,0.23851441]
[1672620887147,22.20894725,1199.9,1199.6,0.47317991]
[1672620887342,5.0,1199.7,1199.6,0.47317991]
[1672620887546,9.15286114,1199.7,1199.6,0.47317991]
[1672620892350,10.07434725,1199.7,1199.6,0.47317991]
[1672620894371,9.15286114,1199.7,1199.6,0.47317991]
[1672620895272,11.24486114,1199.7,1199.6,0.47317991]
[1672620896236,11.24486114,1199.7,1199.6,0.30713972]
[1672620899777,11.24486114,1199.7,1199.6,0.47764357]
[1672620901929,11.24486114,1199.7,1199.6,0.47371819]
[1672620901930,6.24486114,1199.7,1199.6,0.47371819]
[1672620902961,11.24486114,1199.7,1199.6,0.47371819]
[1672620903293,12.64735725,1199.7,1199.6,0.47371819]
[1672620903501,12.64735725,1199.7,1199.6,0.30321434]
[1672620908124,19.64735725,1199.7,1199.6,0.30321434]
[1672620908342,23.50345725,1199.7,1199.6,0.30321434]
[1672620914175,21.18145725,1199.7,1199.6,0.30321434]
[1672620917229,21.18145725,1199.7,1199.6,0.46931088]
[1672620921981,16.18145725,1199.7,1199.6,0.46931088]
[1672620922903,21.18145725,1199.7,1199.6,0.46931088]
[1672620926274,21.18145725,1199.7,1199.6,0.46628923]
[1672620932196,20.55535725,1199.7,1199.6,0.46628923]
[1672620934611,15.55535725,1199.7,1199.6,0.46628923]
[1672620935558,20.55535725,1199.7,1199.6,0.46628923]
[1672620944187,15.55535725,1199.7,1199.6,0.46628923]
[1672620945276,20.55535725,1199.7,1199.6,0.46628923]
[1672620946817,20.55535725,1199.7,1199.6,0.46405679]
[1672620951145,15.55535725,1199.7,1199.6,0.46405679]
[1672620952211,20.55535725,1199.7,1199.6,0.46405679]
[1672620954815,21.41145725,1199.7,1199.6,0.46405679]
[1672620956645,21.18145725,1199.7,1199.6,0.46405679]
[1672620957233,18.18145725,1199.7,1199.6,0.46405679]
[1672620957870,17.55535725,1199.7,1199.6,0.46405679]
[1672620966029,12.55535725,1199.7,1199.6,0.46405679]
[1672620967023,17.55535725,1199.7,1199.6,0.46405679]
[1672620969861,18.18145725,1199.7,1199.6,0.46405679]
[1672620971490,18.18145725,1199.7,1199.6,0.46047784]
[1672620973254,13.18145725,1199.7,1199.6,0.46047784]
[1672620973973,18.18145725,1199.7,1199.6,0.46047784]
[1672620976429,16.15286114,1199.7,1199.6,0.46047784]
[1672620976582,9.15286114,1199.7,1199.6,0.46047784]
[1672620978575,9.15286114,1199.7,1199.6,0.2943813]
[1672620986981,4.15286114,1199.7,1199.6,0.2943813]
[1672620987192,4.14886114,1199.7,1199.6,0.2943813]
[1672620987678,9.14886114,1199.7,1199.6,0.2943813]
[1672620987962,9.15286114,1199.7,1199.6,0.2943813]
[1672620993350,9.15286114,1199.7,1199.6,0.29044183]
[1672620993659,4.15286114,1199.7,1199.6,0.29044183]
[1672620993815,0.066,1199.8,1199.6,2.38244183]
[1672620994030,5.0,1199.7,1199.6,12.21095209]
[1672620994235,5.004,1199.7,1199.6,19.68185393]
[1672620994444,5.004,1199.7,1199.6,19.93423775]
[1672620994711,5.004,1199.7,1199.6,20.9024325]
[1672620994881,5.004,1199.7,1199.6,11.7492325]
[1672620995877,0.06,1200.2,1199.6,38.24805391]
[1672620996024,0.062,1199.8,1199.7,18.62546262]
[1672620996234,4.14886114,1200.2,1199.8,2.5]
[1672620996436,4.14886114,1200.2,1199.9,4.36346262]
[1672620996664,4.14886114,1200.2,1199.9,4.61584644]
[1672620996861,4.14886114,1200.2,1200.0,0.25238382]
[1672620997073,4.14886114,1200.2,1200.1,2.092]
[1672620997421,4.14886114,1200.2,1200.1,0.44363838]
[1672621008269,4.14886114,1200.2,1200.1,0.6960222]
[1672621009477,4.14886114,1200.2,1200.1,0.25238382]
[1672621017369,4.14540182,1200.2,1200.1,0.25238382]
[1672621027125,4.14540182,1200.2,1200.1,0.50327256]
[1672621042051,4.14540182,1200.2,1200.1,0.5009153]
[1672621053488,4.14740182,1200.2,1200.1,0.5009153]
[1672621053727,4.14540182,1200.2,1200.1,0.5009153]
[1672621056833,9.14540182,1200.2,1200.1,0.5009153]
[1672621057008,9.14940182,1200.2,1200.1,0.5009153]
[1672621057177,9.14940182,1200.2,1200.1,0.25088874]
[1672621064995,4.14940182,1200.2,1200.1,0.25088874]
[1672621065310,4.14540182,1200.2,1200.1,0.25088874]
[1672621065883,9.14540182,1200.2,1200.1,0.25088874]
[1672621066258,9.14940182,1200.2,1200.1,0.24887993]
[1672621068823,12.788442,1200.2,1200.1,0.24887993]
[1672621070084,12.788442,1200.2,1199.9,9.30180354]
[1672621070436,5.0,1200.0,1199.9,9.30180354]
[1672621070612,9.15286114,1200.0,1199.9,0.34810354]
[1672621070823,9.15286114,1200.0,1199.9,0.25269734]
[1672621075910,4.15286114,1200.0,1199.9,0.25269734]
[1672621076173,4.14886114,1200.0,1199.9,0.25269734]
[1672621077123,9.14886114,1200.0,1199.9,0.25269734]
[1672621077282,9.15286114,1200.0,1199.9,0.50508116]
[1672621083075,4.15286114,1200.0,1199.9,0.50508116]
[1672621083287,4.14886114,1200.0,1199.9,0.50508116]
[1672621084167,9.14886114,1200.0,1199.9,0.50508116]
[1672621084380,9.15286114,1200.0,1199.9,0.50508116]
[1672621087343,9.15286114,1200.0,1199.9,0.50231218]
[1672621089974,4.15286114,1200.0,1199.9,0.50231218]
[1672621090165,4.14886114,1200.0,1199.9,0.50231218]
[1672621090982,9.14886114,1200.0,1199.9,0.50231218]
[1672621091245,9.15286114,1200.0,1199.9,0.50231218]
[1672621094407,10.07434725,1200.0,1199.9,0.50231218]
[1672621094621,10.70034725,1200.0,1199.9,0.24992836]
[1672621094976,10.70034725,1200.0,1199.7,12.17180685]
[1672621095245,9.14886114,1199.9,1199.7,12.14364685]
[1672621095556,4.14886114,1199.8,1199.7,12.14364685]
[1672621096254,9.14886114,1199.8,1199.7,12.14364685]
[1672621096467,9.15286114,1199.8,1199.7,3.58864685]
[1672621096701,9.15286114,1199.8,1199.7,3.49324065]
[1672621102958,4.15286114,1199.8,1199.7,3.49324065]
[1672621103174,4.14886114,1199.8,1199.7,3.49324065]
[1672621104132,9.14886114,1199.8,1199.7,3.49324065]
[1672621104348,9.15286114,1199.8,1199.7,3.49324065]
[1672621108474,9.15286114,1199.8,1199.7,3.49024382]
[1672621110035,4.15286114,1199.8,1199.7,3.49024382]
[1672621110261,4.14886114,1199.8,1199.7,3.49024382]
[1672621111213,9.14886114,1199.8,1199.7,3.49024382]
[1672621111444,9.15286114,1199.8,1199.7,3.49024382]
[1672621122717,4.15286114,1199.8,1199.7,3.49024382]
[1672621122927,4.14886114,1199.8,1199.7,3.49024382]
[1672621123884,9.14886114,1199.8,1199.7,3.49024382]
[1672621124100,9.15286114,1199.8,1199.7,3.49024382]
[1672621128808,9.15286114,1199.8,1199.7,3.49324065]
[1672621130569,9.15286114,1199.8,1199.7,3.49052101]
[1672621134585,4.15286114,1199.8,1199.7,3.49052101]
[1672621134746,4.14886114,1199.8,1199.7,3.49052101]
[1672621135382,9.14886114,1199.8,1199.7,3.49052101]
[1672621135583,9.15286114,1199.8,1199.7,3.49052101]
[1672621136653,9.15286114,1199.8,1199.7,0.49052101]
[1672621136906,9.15286114,1199.8,1199.7,3.49052101]
[1672621142211,9.15020455,1199.8,1199.7,4.11577246]
[1672621148576,4.15020455,1199.8,1199.7,4.11577246]
[1672621148739,4.14620455,1199.8,1199.7,4.11577246]
[1672621149354,9.14620455,1199.8,1199.7,4.11577246]
[1672621149566,9.15020455,1199.8,1199.7,4.11577246]
[1672621151949,8.95020455,1199.8,1199.7,4.11577246]
[1672621155332,3.95020455,1199.8,1199.7,4.11577246]
[1672621155483,3.94620455,1199.8,1199.7,4.11577246]
[1672621156401,8.94620455,1199.8,1199.7,4.11577246]
[1672621156586,8.95020455,1199.8,1199.7,4.11577246]
[1672621162345,3.95020455,1199.8,1199.7,4.11577246]
[1672621162593,3.94620455,1199.8,1199.7,4.11577246]
[1672621164075,8.94620455,1199.8,1199.7,4.11577246]
[1672621164285,8.95020455,1199.8,1199.7,4.11577246]
[1672621171119,8.95020455,1199.8,1199.7,1.11577246]
[1672621173726,8.95020455,1199.8,1199.7,1.11347198]
[1672621177551,3.95020455,1199.8,1199.7,1.11347198]
[1672621177778,3.94620455,1199.8,1199.7,1.11347198]
[1672621178380,8.94620455,1199.8,1199.7,1.11347198]
[1672621178630,8.95020455,1199.8,1199.7,1.11347198]
[1672621180623,8.95020455,1199.8,1199.7,2.20232225]
[1672621183143,8.95020455,1199.8,1199.7,0.86610828]
[1672621183415,8.95020455,1199.8,1199.7,1.1184921]
[1672621184332,3.95020455,1199.8,1199.7,1.1184921]
[1672621184540,8.94620455,1199.8,1199.7,1.1184921]
[1672621184775,8.95020455,1199.8,1199.7,1.1184921]
[1672621185886,5.004,1199.8,1199.7,1.1184921]
[1672621186094,5.004,1199.8,1199.7,3.6184921]
[1672621186305,5.004,1199.8,1199.7,6.6184921]
[1672621186563,5.004,1199.8,1199.7,6.7138983]
[1672621193173,0.004,1199.8,1199.7,6.7138983]
[1672621193390,8.1438,1200.0,1199.7,6.7138983]
[1672621193557,4.14886114,1199.9,1199.7,6.7138983]
[1672621193975,4.14886114,1199.9,1199.7,6.71095322]
[1672621194189,5.0,1199.8,1199.7,6.71095322]
[1672621194456,5.004,1199.8,1199.7,6.71095322]
[1672621200059,0.004,1199.8,1199.7,6.71095322]
[1672621200416,4.14886114,1199.8,1199.7,0.58570177]
[1672621200624,11.22886114,1199.8,1199.7,0.49029557]
[1672621200837,11.85896114,1199.8,1199.7,0.23791175]
[1672621201032,13.05105725,1199.8,1199.7,0.23791175]
[1672621201239,10.97105725,1199.8,1199.7,0.23791175]
[1672621202269,9.77896114,1199.8,1199.7,0.23791175]
[1672621212697,4.77896114,1199.8,1199.7,0.23791175]
[1672621212943,4.77496114,1199.8,1199.7,0.23791175]
[1672621213746,9.77496114,1199.8,1199.7,0.23791175]
[1672621213958,9.77896114,1199.8,1199.7,0.23791175]
[1672621218172,9.77896114,1199.8,1199.7,0.23538928]